Workbook

Sheet Invoice
E1: Fire Suppression Services, Inc. | M1: INVOICE | Q1: Type Acct. number below | S1: InvIndex | T1: 17
E2: 3802 South 2300 East | Q2: S1-23## | S2: InvTechName | T2: =INDEX(TechList,InvIndex) -> Zach&Mike
E3: Millcreek, Utah 84109-3421 | M3: =+InvTecInit -> ZM | N3: 23#### | Q3: Choose Sales person | S3: InvLicType | T3: =IF(INDEX(LType,InvIndex)>0,INDEX(LType,InvIndex),"") -> AE
E4: Contractor License No. 92-252208-5501 | S4: InvLicNumber | T4: =IF(INDEX(LNumber,InvIndex)>0,INDEX(LNumber,InvIndex),"") -> 248/11131
E5: 801.277.6464 • 800.273.6465 • 801.278.2199 - FAX | M5: DATE | N5: 2021-04-13 | S5: InvTecInit | T5: =INDEX(TechInitial,InvIndex) -> ZM
M6: =IF(M1="invoice","DUE:","EXPIRES:") -> DUE: | N6: =IF(M1="invoice",N5+21,+N5+30) -> 2021-05-04 | P6: <-Edited
A7: BILLING | B7: Client name | J7: JOB SITE
B8: street | Q8: =IF(AND(M1="Invoice",G18=TRUE),EDATE(N5,10),"") -> 
B9: city zip | Q9: =IF(M1="invoice","Re-file date:- " &TEXT(J55,"yyyy-mmm"),"") -> Re-file date:- No ReFile
Q10: =+F69 -> THIS INVOICE IS ALSO YOUR STATEMENT
B11: Ref: name | Q11: =+IF(M62>0,"Total $"& TEXT(SUM(M62:M62),"#,##0.00;;;"),"") -> Total $3,025.52
K12: Ref:
C13: Billing | E13: Job Site | K13: TECHNICIAN | L13: =IF(L14="","","Licence") -> Licence
A14: CONTACT | C14: Dave Hoggan | E14: Vistoria McBride | K14: =+InvTechName -> Zach&Mike | L14: =InvLicType -> AE | M14: =+InvLicNumber -> 248/11131
A15: OFFICE | C15: 8012720917 | E15: 8012720971
A16: CELL | C16: 8019492282 | E16: 8016081602 | G16: Send to eMail:
P17: ReFile
B18: Division | F18: Schedule | H18: Periodicity | L18: Mileage One-Way | N18: TIME | P18: =IF(H19="Annual",EDATE($N$5,10),IF(H19="Bi-Annual",EDATE($N$5,4),IF(H19=6,EDATE($N$5,2),IF(H19="Monthly",EDATE($N$5,1),"No ReFile")))) -> No ReFile
B19: Monitoring | F19: 04 Installation | H19: One-time | L19: Drive Time One-Way | M19: 0 H 00 Min | N19: 00:00:00 | P19: =H19 -> One-time
L20: UNIT PRICE | M20: NON TAX | N20: TAXABLE
A21: T | B21: # | H21: =+N5 -> 2021-04-13
C22: ="CMS Account: " &Q2 &" <<- NEW monitoring account install" -> CMS Account: S1-23## <<- NEW monitoring account install | M22: =IF(A22=0,B22*L22,0) -> 0 | N22: =+IF(A22="T",B22*L22,"") -> 
L23: 0 | M23: 0 | N23: =+IF(A23="T",B23*L23,"") -> 
C24: New Install | M24: 0
A25: T | B25: 1 | C25: NapCo Starlink SLE-LTE-VI Fire cellular dialer | L25: =160*2 -> 320 | M25: 0 | N25: 320
C26: a 4G StarLink Commercial Fire Communicator. | M26: 0
C27: Activated the unit with offsite monitoring and tested. | M27: 0
M28: 0 | T28: Cell format is:
A29: T | B29: 1 | C29: ="Data Programming & activation Cell -"&Q2 -> Data Programming & activation Cell -S1-23## | L29: 75 | M29: 0 | N29: 75 | T29: Accounting w/ bracket-Neagative & blank zero
M30: 0 | T30: _($* 0.00_);_($* (0.00)_;;" "
A31: T | B31: 1 | C31: Added System Sensor parts: 1 Horn Strobe & 2 Strobe-only devices | L31: =80+(2*62) -> 204 | M31: 0 | N31: 204
A32: T | B32: 1 | C32: 100 ft of 14/2 Plenum wire for the additional devices | L32: =135*2 -> 270 | M32: 0 | N32: 270
M33: 0
M34: 0
M35: 0
C36: Note: Techs arrived at site at appointed hour | M36: 0
C37: They were kept waiting for two hours (4 man hours) | M37: 0 | N37: =+IF(A37="T",J37*L37,"") -> 
C38: before they were given access to site. | L38: SUBTOTALS: | M38: =SUM(M21:M37) -> 0 | N38: =SUM(N21:N37) -> 869
C40: Technicians Zach Hagblom, Mike Kimball install
C41: Tech hours
A42: T | B42: 2 | C42: Tech/s | E42: 2021-04-13 | F42: @ | G42: 4 | H42: =IF(B42>0,IF(B42>1,"hours each is:","hours is: "),"") -> hours each is: | J42: =+B42*G42 -> 8 | K42: =IF(B42>0,"Man Hours","") -> Man Hours | L42: 80 | M42: =+IF(A42="",J42*L42,0) -> 0 | N42: =+IF(A42="T",J42*L42,0) -> 640
A43: T | B43: 2 | C43: Tech/s | E43: 2021-04-15 | F43: @ | G43: 2 | H43: =IF(B43>0,IF(B43>1,"hours each is:","hours is: "),"") -> hours each is: | J43: =+B43*G43 -> 4 | K43: =IF(B43>0,"Man Hours","") -> Man Hours | L43: 80 | M43: =+IF(A43="",J43*L43,0) -> 0 | N43: =+IF(A43="T",J43*L43,0) -> 320
A44: T | B44: 2 | C44: Tech/s | E44: 2021-04-15 | F44: @ | G44: 5 | H44: =IF(B44>0,IF(B44>1,"hours each is:","hours is: "),"") -> hours each is: | J44: =+B44*G44 -> 10 | K44: =IF(B44>0,"Man Hours","") -> Man Hours | L44: 80 | N44: =+IF(A44="T",J44*L44,0) -> 800
A45: FALSE | C45: =IF(A45=TRUE,"Compliance reporting fee: ","") -> 
A46: FALSE | C46: =IF(A46=TRUE,"WATER Utility reporting fee: ","") -> 
D48: DUE WHEN | G48: NUMBER ON PROPERTY | J48: CODE
A49: EXTINGUISHER | D49: 2022-04-01 | L49: TRUE | N49: =IF(L49=TRUE,SUM(M42:M44)+SUM(N42:N44),0) -> 1760 | P49: =IF(L49=TRUE,"y","n") -> y
L50: TRUE | N50: =IF(L50=TRUE,ROUNDUP((+M38+N38)*8%,0),0) -> 70 | P50: <- ALWAYS
A51: Alarms | D51: 2022-04-01
A52: EM / EX LIGHTING | L52: FALSE | M52: Travel/Transport | N52: 30 | P52: <- To Tech for his/her vehicle & their travel cost
L53: TRUE | M53: Freight | N53: =IF(L53=TRUE,ROUNDUP(rngFreight*(M38+N38),0),0) -> 9 | P53: <- Our charge to deliver
A54: HOOD CLEANING | J54: =IF(M1="Invoice","REFILE","") -> REFILE | L54: TRUE | M54: Handling | N54: =IF(L54=TRUE,ROUNDUP(rngHandling*(M38+N38),0),0) -> 22 | P54: <- The folks that load it
J55: =IF(H19="Annual",EDATE($N$5,10),IF(H19="Bi-Annual",EDATE($N$5,4),IF(H19=6,EDATE($N$5,2),IF(H19="Monthly",EDATE($N$5,1),"No ReFile")))) -> No ReFile | L55: TRUE | N55: =IF(L55=TRUE,ROUNDUP((+M38+N38)*7%,0),0) -> 61 | P55: <- EPA regulation
A56: RISER | D56: NONE | L56: =IF(OR(A45=TRUE,A46=TRUE),"Compliance reporting fee","") ->  | N56: =SUM(M45:M46) -> 0
M57: Sales Tax | N57: =IF(N38>0,N38*rngTaxMillcreek,0)+(SUM(N49:N56)*rngTaxMillcreek) -> 204.5225 | P57: <- moveable assets only
A58: I, RECEIPT OF COPY: CUSTOMER ACKNOWLEDGES RECEIPT OF COPY AND THAT HE UNDERSTANDS ALL OF THIS AGREEMENT AND PARTICULARLY PARAGRAPHS 1,2,3,4 AND 5 ON THE REVERSE
A59: WHICH SETS FORTH COMPANY'S MAXIMUM LIABILITY. THE SYSTEM'S HAVE BEEN SERVICED IN ACCORDANCE WITH NATIONAL FIRE PROTECTION STANDARDS AND CODES OR CURRENT MFG.
A60: SERVICE REQUIREMENTS AND DOES NOT CERTIFY THE DESIGN AND / OR THE INSTALLATION CRITERIA.
A62: Net 15 Days | D62: WORK AUTHORIZATION NUMBER | H62: 34565 | L62: =IF(M1="INVOICE","TOTAL DUE","Estimated at:") -> TOTAL DUE | M62: =SUM(N49:N57)+N38 -> 3025.5225 | P62: Type in the red cells and
D63: PURCHASE / WORK ORDER NUMBER | H63: S1 2305 | P63: the colour will dissappear
A64: Cash | D64: RECEIVED IN GOOD ORDER AND ACCEPTED | L64: TIMES ARE CORRECT AND JOB COMPLETED SATISFACTORILY | Q64: =IF(N38>0,N38*rngTaxMillcreek,"")+SUM(N49:N56) -> 2015.0025
A65: Check | D65: BY X | L65: CLAIMS WILL NOT BE HONORED AFTER TEN (10) DAYS FROM DATE
A66: Credit card | E66: BUYER SHALL PAY SELLER FOR THIS PURCHASE | L66: OF SERVICE.
A67: INTEREST & COLLECTION FEES WILL BE CHARGED ON OVERDUE ACCOUNTS. | H67: 3% PER MONTH | K67: MINIMUM BILLING OF $45.00
A69: Rev: 2020-08-08 10:15 | F69: =IF(M1="INVOICE","THIS INVOICE IS ALSO YOUR STATEMENT","Quote/Estimate ONLY") -> THIS INVOICE IS ALSO YOUR STATEMENT | N69: THANK YOU

Sheet Calcs
C4: rngTechList | L4: Service
D5: TechList | E5: LType | F5: LNumber | G5: TechInitial
C7: 1 | D7: ADangerfield | E7: L1 | F7: S102811 | G7: =LEFT(D7,2) -> AD
C8: 2 | D8: Arun | G8: AUR
C9: 3 | D9: BGubler | E9: HE | F9: 13 | G9: =LEFT(D9,2) -> BG
C10: 4 | D10: BHolbrook | E10: HE | F10: 48 | G10: =LEFT(D10,2) -> BH
C11: 5 | D11: BNielson | E11: HE | F11: 8687 | G11: =LEFT(D11,2) -> BN
C12: 6 | D12: Bonnie | G12: =LEFT(D12,1) -> B
C13: 7 | D13: DCawley | E13: HE | F13: 5355 | G13: =LEFT(D13,2) -> DC
C14: 8 | D14: Glenn | E14: EE | F14: 1463 | G14: =LEFT(D14,2) -> Gl
C15: 9 | D15: HDangerfield | E15: L3 | F15: S102811 | G15: =LEFT(D15,2) -> HD
C16: 10 | D16: JLeavitt | E16: HE | F16: 11107 | G16: =LEFT(D16,2) -> JL
C17: 11 | D17: KCall | E17: HE | F17: 111011 | G17: =LEFT(D17,2) -> KC
C18: 12 | D18: Kristen | G18: =LEFT(D18,1) -> K
C19: 13 | D19: MKimball | E19: AE | F19: 11131 | G19: =LEFT(D19,2) -> MK
C20: 14 | D20: Office | G20: =LEFT(D20,1) -> O
C21: 15 | D21: TStrickland | E21: HE | F21: 3638 | G21: =LEFT(D21,1) -> T
C22: 16 | D22: Zach | E22: AE | F22: 248 | G22: =LEFT(D22,2) -> Za
C23: 17 | D23: Zach&Mike | E23: AE | F23: 248/11131 | G23: ZM
E26: rngTCE
F27: TCE SP
F28: 0
F29: 30
F30: 50
F31: 55
H33: rngTaxMillcreek
I34: Millcreek Tax
I35: =0.0725 -> 0.0725
K38: rngMarkUp
L39: Ins&Misc
L40: 0.08
N43: rngHandling
O44: Handling charge
O45: 0.025
Q50: rngFreight
R51: Freight Charge
R52: 0.01
T54: rngtaxChoice
T56: T
V58: Contacts | W58: cEmail
V59: Invoice | W59: apquestions@emcorgroup.com
V60: Quote | W60: ldschurch@emcorgroup.com
Y63: rngTravel
Z64: Reimburse for travel
Z65: 0
Z66: 15
Z67: 30
Z68: 35
Z69: 40
Z70: 45
Z71: 55
AB73: rngItemsJob
AC75: Alarms
AC76: Back flow preventor
AC77: eLites
AC78: Emergency D&G
AC79: Exhaust cleaning
AC80: Extinguishers
AC81: Monitoring
AC82: Other
AC83: Suppression Chemical
AC84: Suppression Clean Agent
AC85: Suppression Sprinkler
AF87: rngItemsSchedule
AG89: 01 Prelims
AG90: 02 Mobilisation
AG91: 03 Progress Payment
AG92: 04 Installation
AG93: 05 Finals
AG94: 06 Repair
AG95: 07 Inspection
AG96: 08 Time & Materials
AG97: 09 Invoice
AJ100: rngPeriodicity
AK102: Annual
AK103: Bi-Annual
AK104: Monthly
AK105: One-time
AK106: Quarterly

Sheet Sheet1
E3: Time
E4: in hours | G4: Man Hours
E5: =SUM(E6:E14) -> 8 | G5: =SUM(G6:G14) -> 16
B7: 01 Waiting for Access | C7: 2 | D7: Tekz | E7: 2 | G7: =+C7*E7 -> 4
B8: 02 Wiring & Devices | C8: 2 | D8: Tekz | E8: 4 | G8: =+C8*E8 -> 8
B9: 03 Install Dialer | C9: 2 | D9: Tekz | E9: 1 | G9: =+C9*E9 -> 2
B10: 04 Annual Insp | C10: 2 | D10: Tekz | E10: 1 | G10: =+C10*E10 -> 2
G11: =+C11*E11 -> 0
